Body Name,Document Number,Service,Type of Expenditure,Invoice Date,Supplier Name,Cost to the Council (Amount Exc VAT),Month
EREWASH BOROUGH COUNCIL,217910,Community Grants,Grants and Subscriptions,30/03/20,147TH/3RD OCKBROOK AND BORROWASH SCOUT GROUP,250.00,Apr-20
EREWASH BOROUGH COUNCIL,217909,Community Grants,Grants and Subscriptions,30/03/20,1ST BREASTON SCOUTS,300.00,Apr-20
EREWASH BOROUGH COUNCIL,218372,Homelessness,Temporary Accommodation,30/03/20,A38 WOODLANDS,280.00,Apr-20
EREWASH BOROUGH COUNCIL,218213,Pedestrian Zones - Ilkeston and Long Eaton,Planned Preventative Maintenance,09/04/20,ACKROYD ELECTRICAL SERVICES LTD,"1,000.00",Apr-20
EREWASH BOROUGH COUNCIL,218211,Pedestrian Zones - Ilkeston and Long Eaton,PPM Mechanical and Equipment,09/04/20,ACKROYD ELECTRICAL SERVICES LTD,"1,200.00",Apr-20
EREWASH BOROUGH COUNCIL,218212,Pedestrian Zones - Ilkeston and Long Eaton,Reactive Maintenance,09/04/20,ACKROYD ELECTRICAL SERVICES LTD,"1,735.01",Apr-20
EREWASH BOROUGH COUNCIL,218213,Pedestrian Zones - Ilkeston and Long Eaton,Reactive Maintenance,09/04/20,ACKROYD ELECTRICAL SERVICES LTD,"1,000.00",Apr-20
EREWASH BOROUGH COUNCIL,218077,Balance Sheet,Accountancy Software Licence Payments in Advance,19/03/20,ADVANCED BUSINESS SOFTWARE & SOLUTIONS LIMITED,"48,191.00",Apr-20
EREWASH BOROUGH COUNCIL,218107,Balance Sheet,ICT Works,31/03/20,ADVANCED BUSINESS SOFTWARE & SOLUTIONS LIMITED,995.03,Apr-20
EREWASH BOROUGH COUNCIL,218108,Balance Sheet,ICT Works,31/03/20,ADVANCED BUSINESS SOFTWARE & SOLUTIONS LIMITED,"1,990.05",Apr-20
EREWASH BOROUGH COUNCIL,217377,Economic Development,General Publicity and Promotion,05/03/20,AECOM INFRASTRUCTURE & ENVIRONMENT UK LTD,"6,576.96",Apr-20
EREWASH BOROUGH COUNCIL,218118,Economic Development,General Publicity and Promotion,31/03/20,AECOM INFRASTRUCTURE & ENVIRONMENT UK LTD,"3,032.35",Apr-20
EREWASH BOROUGH COUNCIL,217873,Economic Development,General Publicity and Promotion,05/02/20,AECOM INFRASTRUCTURE & ENVIRONMENT UK LTD,"14,632.38",Apr-20
EREWASH BOROUGH COUNCIL,217972,Balance Sheet,Flood Hardship Fund,30/03/20,REDACTED PERSONAL DATA,500.00,Apr-20
EREWASH BOROUGH COUNCIL,218171,Treasury Management and Bank Charges,Allpay/Post Office Charges,31/03/20,ALLPAY LIMITED,626.36,Apr-20
EREWASH BOROUGH COUNCIL,217903,Balance Sheet,Building Works,27/03/20,ALPHA DRAIN SERVICES,"5,920.00",Apr-20
EREWASH BOROUGH COUNCIL,217903,Property and Estates,Alarms Reactive Maintenance,27/03/20,ALPHA DRAIN SERVICES,195.00,Apr-20
EREWASH BOROUGH COUNCIL,217682,Property and Estates,Reactive Maintenance,18/03/20,ALPHA PARTNER (MIDLANDS)  LIMITED,860.00,Apr-20
EREWASH BOROUGH COUNCIL,217685,Property and Estates,Reactive Maintenance,08/03/20,ALPHA PARTNER (MIDLANDS)  LIMITED,"1,360.00",Apr-20
EREWASH BOROUGH COUNCIL,217688,Property and Estates,Reactive Maintenance,10/03/20,ALPHA PARTNER (MIDLANDS)  LIMITED,245.00,Apr-20
EREWASH BOROUGH COUNCIL,217630,Property and Estates,Reactive Maintenance,08/03/20,ALPHA PARTNER (MIDLANDS)  LIMITED,580.00,Apr-20
EREWASH BOROUGH COUNCIL,217678,Property and Estates,Reactive Maintenance,18/03/20,ALPHA PARTNER (MIDLANDS)  LIMITED,"1,570.00",Apr-20
EREWASH BOROUGH COUNCIL,217683,Property and Estates,Reactive Maintenance,18/03/20,ALPHA PARTNER (MIDLANDS)  LIMITED,890.00,Apr-20
EREWASH BOROUGH COUNCIL,217802,Property and Estates,Repairs and Maintenance,24/03/20,ALPHA PARTNER (MIDLANDS)  LIMITED,"1,030.91",Apr-20
EREWASH BOROUGH COUNCIL,217690,Property and Estates,Reactive Maintenance,08/03/20,ALPHA PARTNER (MIDLANDS)  LIMITED,590.00,Apr-20
EREWASH BOROUGH COUNCIL,217636,Property and Estates,Reactive Maintenance,08/03/20,ALPHA PARTNER (MIDLANDS)  LIMITED,850.00,Apr-20
EREWASH BOROUGH COUNCIL,217684,Property and Estates,Planned Preventative Maintenance,18/03/20,ALPHA PARTNER (MIDLANDS)  LIMITED,680.00,Apr-20
EREWASH BOROUGH COUNCIL,217792,Property and Estates,Planned Preventative Maintenance,24/03/20,ALPHA PARTNER (MIDLANDS)  LIMITED,728.66,Apr-20
EREWASH BOROUGH COUNCIL,217686,Property and Estates,Reactive Maintenance,08/03/20,ALPHA PARTNER (MIDLANDS)  LIMITED,"1,105.00",Apr-20
EREWASH BOROUGH COUNCIL,217792,Property and Estates,Alarms Planned Maintenence,24/03/20,ALPHA PARTNER (MIDLANDS)  LIMITED,21.34,Apr-20
EREWASH BOROUGH COUNCIL,217628,Property and Estates,Planned Preventative Maintenance,08/03/20,ALPHA PARTNER (MIDLANDS)  LIMITED,580.00,Apr-20
EREWASH BOROUGH COUNCIL,217631,Property and Estates,Reactive Maintenance,08/03/20,ALPHA PARTNER (MIDLANDS)  LIMITED,390.00,Apr-20
EREWASH BOROUGH COUNCIL,217795,Property and Estates,Reactive Maintenance,24/03/20,ALPHA PARTNER (MIDLANDS)  LIMITED,"5,474.00",Apr-20
EREWASH BOROUGH COUNCIL,217686,Property and Estates,Planned Preventative Maintenance,08/03/20,ALPHA PARTNER (MIDLANDS)  LIMITED,90.00,Apr-20
EREWASH BOROUGH COUNCIL,217757,Property and Estates,Planned Preventative Maintenance,08/03/20,ALPHA PARTNER (MIDLANDS)  LIMITED,"1,200.00",Apr-20
EREWASH BOROUGH COUNCIL,217626,Balance Sheet,Refurbishment and Internal Works,09/03/20,ALPHA PARTNER (MIDLANDS)  LIMITED,"9,580.00",Apr-20
EREWASH BOROUGH COUNCIL,217629,Property and Estates,Reactive Maintenance,08/03/20,ALPHA PARTNER (MIDLANDS)  LIMITED,440.00,Apr-20
EREWASH BOROUGH COUNCIL,217788,Property and Estates,Reactive Maintenance,24/03/20,ALPHA PARTNER (MIDLANDS)  LIMITED,"1,270.00",Apr-20
EREWASH BOROUGH COUNCIL,217802,Toll Bar House - Ilkeston,Repairs and Maintenance,24/03/20,ALPHA PARTNER (MIDLANDS)  LIMITED,368.84,Apr-20
EREWASH BOROUGH COUNCIL,218324,Planning Policy,Project Grants,24/01/20,ANDREW GOLLAND ASSOCIATES LIMITED,"8,910.00",Apr-20
EREWASH BOROUGH COUNCIL,217891,Reprographics,Printing and Stationery,23/03/20,ANTALIS DOCUMENT SUPPLIES,353.88,Apr-20
EREWASH BOROUGH COUNCIL,217960,ICT Support Services,Office Paper,19/03/20,ANTALIS DOCUMENT SUPPLIES,317.95,Apr-20
EREWASH BOROUGH COUNCIL,217961,ICT Support Services,Office Paper,20/03/20,ANTALIS DOCUMENT SUPPLIES,241.00,Apr-20
EREWASH BOROUGH COUNCIL,217413,Street Scene,Maintenance of Bus Shelters,04/03/20,ARCO,527.31,Apr-20
EREWASH BOROUGH COUNCIL,217485,Ilkeston Market,General Equipment,06/03/20,ARCO,244.68,Apr-20
EREWASH BOROUGH COUNCIL,217927,ICT Support Services,GIS Software Licences,25/03/20,ASTUN TECHNOLOGY LTD,"11,750.00",Apr-20
EREWASH BOROUGH COUNCIL,217958,Car Parking,Planned Preventative Maintenance,15/03/20,ATG ACCESS LTD,667.60,Apr-20
EREWASH BOROUGH COUNCIL,218432,Infectious Diseases and Food Poisoning,Work In Default,09/04/20,AW LYMN LTD,"1,576.00",Apr-20
EREWASH BOROUGH COUNCIL,218433,Infectious Diseases and Food Poisoning,Work In Default,02/04/20,AW LYMN LTD,"1,576.00",Apr-20
EREWASH BOROUGH COUNCIL,218379,Infectious Diseases and Food Poisoning,Work In Default,02/03/20,AW LYMN LTD,"1,412.00",Apr-20
EREWASH BOROUGH COUNCIL,217933,Green Space,Repairs and Maintenance,16/12/19,BANNER GROUP LIMITED,62.74,Apr-20
EREWASH BOROUGH COUNCIL,217933,Public Conveniences,Materials/Consumables,16/12/19,BANNER GROUP LIMITED,241.45,Apr-20
EREWASH BOROUGH COUNCIL,217895,Trees Hedges and Local Nature Reserves,Contracted Services,25/03/20,BEECHWOOD TREES AND LANDSCAPLES LTD,"9,150.00",Apr-20
EREWASH BOROUGH COUNCIL,217698,Green Space,Contracted Services,19/03/20,BEECHWOOD TREES AND LANDSCAPLES LTD,"1,450.00",Apr-20
EREWASH BOROUGH COUNCIL,218088,Transport Trading Account,General Equipment,29/02/20,BOC LTD,443.00,Apr-20
EREWASH BOROUGH COUNCIL,217913,Parish Precepts,Breadsall - Precept,30/03/20,BREADSALL PARISH COUNCIL,"3,375.00",Apr-20
EREWASH BOROUGH COUNCIL,217913,Parish Council Concurrent Functions,Breadsall - Precept,30/03/20,BREADSALL PARISH COUNCIL,"1,361.00",Apr-20
EREWASH BOROUGH COUNCIL,217914,Parish Council Concurrent Functions,Breaston - Precept,30/03/20,BREASTON PARISH COUNCIL,"11,494.00",Apr-20
EREWASH BOROUGH COUNCIL,217914,Parish Precepts,Breaston - Precept,30/03/20,BREASTON PARISH COUNCIL,"12,960.00",Apr-20
EREWASH BOROUGH COUNCIL,217987,ICT Support Services,Telephones,22/03/20,BRITISH TELECOMMUNICATIONS PLC,"1,339.44",Apr-20
EREWASH BOROUGH COUNCIL,217851,Property and Estates,Planned Preventative Maintenance,24/03/20,BROOKLYN ELLIS LTD,376.34,Apr-20
EREWASH BOROUGH COUNCIL,218126,Internal Audit,Consultants Fees,02/04/20,BROXTOWE BOROUGH COUNCIL,"4,625.00",Apr-20
EREWASH BOROUGH COUNCIL,217997,Occupational Health and Welfare,Occupational Health Service,26/03/20,BUPA HEALTH CLINICS,406.44,Apr-20
EREWASH BOROUGH COUNCIL,218305,Occupational Health and Welfare,Occupational Health Service,01/07/19,BUPA HEALTH CLINICS,406.45,Apr-20
EREWASH BOROUGH COUNCIL,217998,Occupational Health and Welfare,Occupational Health Service,26/03/20,BUPA HEALTH CLINICS,406.45,Apr-20
EREWASH BOROUGH COUNCIL,218304,Occupational Health and Welfare,Occupational Health Service,01/05/19,BUPA HEALTH CLINICS,406.44,Apr-20
EREWASH BOROUGH COUNCIL,218035,Green Space,Materials/Consumables,26/02/20,CALOR GAS LIMITED,953.07,Apr-20
EREWASH BOROUGH COUNCIL,218173,Balance Sheet,Building Works,06/04/20,CANAL & RIVER TRUST,"1,130.00",Apr-20
EREWASH BOROUGH COUNCIL,217942,CCTV - Ilkeston and Long Eaton,Maintenance of Equipment,23/03/20,CANDOR SERVICES LTD,225.25,Apr-20
EREWASH BOROUGH COUNCIL,218248,Front Line Support Services,Software Licences,08/04/20,CAPITA,"9,213.15",Apr-20
EREWASH BOROUGH COUNCIL,218235,Balance Sheet,Fuel Store,31/03/20,CARLTON FUELS,"25,482.00",Apr-20
EREWASH BOROUGH COUNCIL,217740,ICT Support Services,General Equipment,07/03/20,CCS MEDIA LIMITED,335.94,Apr-20
EREWASH BOROUGH COUNCIL,218127,Accountancy,Reference Literature and Publications,31/01/20,CHARTERED INSTITUTE OF PUBLIC FINANCE & ACCOUNTANCY,340.00,Apr-20
EREWASH BOROUGH COUNCIL,218127,Revenues and Benefits,Reference Literature and Publications,31/01/20,CHARTERED INSTITUTE OF PUBLIC FINANCE & ACCOUNTANCY,340.00,Apr-20
EREWASH BOROUGH COUNCIL,218127,Internal Audit,Reference Literature and Publications,31/01/20,CHARTERED INSTITUTE OF PUBLIC FINANCE & ACCOUNTANCY,340.00,Apr-20
EREWASH BOROUGH COUNCIL,217963,Civic Accommodation - Ilkeston,Sanitary Services,01/04/20,CITRON HYGIENE,530.00,Apr-20
EREWASH BOROUGH COUNCIL,217963,Civic Accommodation - Long Eaton,Sanitary Services,01/04/20,CITRON HYGIENE,730.00,Apr-20
EREWASH BOROUGH COUNCIL,217963,Public Conveniences,Sanitary Services,01/04/20,CITRON HYGIENE,884.32,Apr-20
EREWASH BOROUGH COUNCIL,217963,Merlin Way Depot - Ilkeston,Sanitary Services,01/04/20,CITRON HYGIENE,560.00,Apr-20
EREWASH BOROUGH COUNCIL,218219,ICT Support Services,Software Licences,07/04/20,CIVICA UK LIMITED,"42,610.00",Apr-20
EREWASH BOROUGH COUNCIL,218219,ICT Support Services,General Equipment,07/04/20,CIVICA UK LIMITED,903.00,Apr-20
EREWASH BOROUGH COUNCIL,218119,Revenues and Benefits,Software Licences,06/04/20,CIVICA UK LIMITED,"7,500.00",Apr-20
EREWASH BOROUGH COUNCIL,217904,Commissioned Projects,Fees Costs and Expenses,25/03/20,CLARE FLANDERS T/A JIVA MARKETING,400.00,Apr-20
EREWASH BOROUGH COUNCIL,217554,Transport Trading Account,Lubricants and Anti-freeze,13/03/20,COMPRESSOR SERVICES (EAST MIDLANDS) LTD,352.78,Apr-20
EREWASH BOROUGH COUNCIL,218234,Green Space,Materials/Consumables,06/04/20,CROMWELL POLYTHENE LTD,686.70,Apr-20
EREWASH BOROUGH COUNCIL,217936,Green Space,Repairs and Maintenance,25/03/20,CROMWELL POLYTHENE LTD,"1,982.40",Apr-20
EREWASH BOROUGH COUNCIL,217751,Civic Transport,Hire Charges,23/03/20,CRUISE-IN-CONTROL LIMITED,464.50,Apr-20
EREWASH BOROUGH COUNCIL,218244,Civic Transport,Hire Charges,03/04/20,CRUISE-IN-CONTROL LIMITED,"1,000.00",Apr-20
EREWASH BOROUGH COUNCIL,217915,Parish Council Concurrent Functions,Dale Abbey - Precept,30/03/20,DALE ABBEY PARISH COUNCIL,"2,392.00",Apr-20
EREWASH BOROUGH COUNCIL,217915,Parish Precepts,Dale Abbey - Precept,30/03/20,DALE ABBEY PARISH COUNCIL,"2,196.00",Apr-20
EREWASH BOROUGH COUNCIL,217611,Green Space,Materials/Consumables,12/03/20,DART LTD,585.00,Apr-20
EREWASH BOROUGH COUNCIL,218345,Kerbside Dry Recycling Collection,Repairs and Maintenance,22/04/20,DENNIS EAGLE LTD,228.79,Apr-20
EREWASH BOROUGH COUNCIL,218083,Trade Waste,Repairs and Maintenance,20/03/20,DENNIS EAGLE LTD,228.79,Apr-20
EREWASH BOROUGH COUNCIL,218345,Trade Waste,Repairs and Maintenance,22/04/20,DENNIS EAGLE LTD,258.75,Apr-20
EREWASH BOROUGH COUNCIL,218195,Kerbside Dry Recycling Collection,Repairs and Maintenance,06/04/20,DENNIS EAGLE LTD,487.54,Apr-20
EREWASH BOROUGH COUNCIL,218355,Household/Residual Waste Collection,Repairs and Maintenance,21/01/20,DENNIS EAGLE LTD,956.00,Apr-20
EREWASH BOROUGH COUNCIL,218349,Household/Residual Waste Collection,Repairs and Maintenance,10/03/20,DENNIS EAGLE LTD,243.74,Apr-20
EREWASH BOROUGH COUNCIL,218345,Household/Residual Waste Collection,Repairs and Maintenance,22/04/20,DENNIS EAGLE LTD,347.13,Apr-20
EREWASH BOROUGH COUNCIL,218344,Household/Residual Waste Collection,Repairs and Maintenance,21/04/20,DENNIS EAGLE LTD,258.44,Apr-20
EREWASH BOROUGH COUNCIL,218161,Household/Residual Waste Collection,Repairs and Maintenance,26/02/20,DENNIS EAGLE LTD,574.60,Apr-20
EREWASH BOROUGH COUNCIL,218363,Trade Waste,Repairs and Maintenance,17/03/20,DENNIS EAGLE LTD,608.76,Apr-20
EREWASH BOROUGH COUNCIL,218362,Kerbside Dry Recycling Collection,Repairs and Maintenance,17/03/20,DENNIS EAGLE LTD,361.76,Apr-20
EREWASH BOROUGH COUNCIL,218085,Green Space,Repairs and Maintenance,19/03/20,DENNIS EAGLE LTD,"1,647.36",Apr-20
EREWASH BOROUGH COUNCIL,218356,Household/Residual Waste Collection,Repairs and Maintenance,21/01/20,DENNIS EAGLE LTD,397.80,Apr-20
EREWASH BOROUGH COUNCIL,217769,"Police, Crime Commissioner Community Safety Grant",Project Grants,11/03/20,DERBY COUNTY COMMUNITY TRUST,570.00,Apr-20
EREWASH BOROUGH COUNCIL,218313,Balance Sheet,Payroll Collection A/c - Credit Union,22/04/20,DERBYSHIRE COMMUNITY BANK,330.00,Apr-20
EREWASH BOROUGH COUNCIL,218202,Balance Sheet,Payroll Collection A/c - Superannuation,14/04/20,DERBYSHIRE COUNTY COUNCIL...,"208,720.81",Apr-20
EREWASH BOROUGH COUNCIL,218261,Central Services/Statement of Accounts,Year End Pension Valuation Fee,31/03/20,DERBYSHIRE COUNTY COUNCIL...,"1,200.00",Apr-20
EREWASH BOROUGH COUNCIL,218128,Compensation and Pensions,Compensatory Added Years,31/03/20,DERBYSHIRE COUNTY COUNCIL...,"38,398.55",Apr-20
EREWASH BOROUGH COUNCIL,218051,Personnel,Recruitment Expenses,31/03/20,DERBYSHIRE COUNTY COUNCIL...,"1,232.00",Apr-20
EREWASH BOROUGH COUNCIL,217898,Balance Sheet,Grant Payments,17/02/20,DERBYSHIRE COUNTY COUNCIL...,"5,426.73",Apr-20
EREWASH BOROUGH COUNCIL,218275,Balance Sheet,Grant Payments,25/02/20,DERBYSHIRE COUNTY COUNCIL...,"4,973.32",Apr-20
EREWASH BOROUGH COUNCIL,218274,Balance Sheet,Grant Payments,03/03/20,DERBYSHIRE COUNTY COUNCIL...,"14,500.00",Apr-20
EREWASH BOROUGH COUNCIL,218417,Local Land Charges,County Council Search Charges,02/04/20,DERBYSHIRE COUNTY COUNCIL...,"4,635.75",Apr-20
EREWASH BOROUGH COUNCIL,218283,Home Energy Conservation,Contribution to Shared Service,02/04/20,DERBYSHIRE COUNTY COUNCIL...,"3,000.00",Apr-20
EREWASH BOROUGH COUNCIL,217897,Balance Sheet,Grant Payments,13/02/20,DERBYSHIRE COUNTY COUNCIL...,"6,674.00",Apr-20
EREWASH BOROUGH COUNCIL,218276,Balance Sheet,Grant Payments,24/02/20,DERBYSHIRE COUNTY COUNCIL...,"5,430.18",Apr-20
EREWASH BOROUGH COUNCIL,218202,Balance Sheet,Payroll Collection A/c - Purchase Added Years,14/04/20,DERBYSHIRE COUNTY COUNCIL...,275.14,Apr-20
EREWASH BOROUGH COUNCIL,218406,Community Grants,Non Service Specific Grants,22/04/20,DERBYSHIRE DISTRICTS CAB,"29,796.00",Apr-20
EREWASH BOROUGH COUNCIL,218117,Planning Policy,Project Grants,12/02/20,DERBYSHIRE WILDLIFE TRUST,"5,366.00",Apr-20
EREWASH BOROUGH COUNCIL,218117,Development Control - Fee Earning,Consultants Fees,12/02/20,DERBYSHIRE WILDLIFE TRUST,"5,366.00",Apr-20
EREWASH BOROUGH COUNCIL,218170,Hackney Carriages / Private Hire,Criminal Records Bureau Checks,31/03/20,DISCLOSURE & BARRING SERVICE,360.00,Apr-20
EREWASH BOROUGH COUNCIL,218170,Personnel,Recruitment Expenses,31/03/20,DISCLOSURE & BARRING SERVICE,280.00,Apr-20
EREWASH BOROUGH COUNCIL,218140,ICT Support Services,GIS Software Licences,06/03/20,DOTTED EYES LTD,450.00,Apr-20
EREWASH BOROUGH COUNCIL,218141,ICT Support Services,GIS Software Licences,06/03/20,DOTTED EYES LTD,330.00,Apr-20
EREWASH BOROUGH COUNCIL,217916,Parish Precepts,Draycott - Precept,30/03/20,DRAYCOTT PARISH COUNCIL,"12,123.45",Apr-20
EREWASH BOROUGH COUNCIL,217916,Parish Council Concurrent Functions,Draycott - Precept,30/03/20,DRAYCOTT PARISH COUNCIL,"7,543.00",Apr-20
EREWASH BOROUGH COUNCIL,217869,Revenues and Benefits,Postages,25/03/20,DSI BILLING SERVICES LTD,"15,353.94",Apr-20
EREWASH BOROUGH COUNCIL,217868,Revenues and Benefits,Printing and Stationery,25/03/20,DSI BILLING SERVICES LTD,"5,353.33",Apr-20
EREWASH BOROUGH COUNCIL,217956,ICT Support Services,Software Licences,26/03/20,EACS LTD,"2,379.00",Apr-20
EREWASH BOROUGH COUNCIL,217665,Green Space,Materials/Consumables,18/03/20,EAST RIDING HORTICULTURE LTD,"3,268.80",Apr-20
EREWASH BOROUGH COUNCIL,217608,Green Space,Materials/Consumables,16/03/20,EASY GATE LTD,208.95,Apr-20
EREWASH BOROUGH COUNCIL,217608,Play Areas,Materials/Consumables,16/03/20,EASY GATE LTD,"1,216.05",Apr-20
EREWASH BOROUGH COUNCIL,217925,Community Grants,Non Service Specific Grants,26/03/20,EREWASH COMMUNITY TRANSPORT,"5,913.34",Apr-20
EREWASH BOROUGH COUNCIL,218316,Balance Sheet,Payroll Collection A/c - Labour Party Funds,22/04/20,EREWASH LABOUR GROUP,550.74,Apr-20
EREWASH BOROUGH COUNCIL,218177,Economic Development,Grants and Subscriptions,01/04/20,EREWASH PARTNERSHIP LTD,"19,625.00",Apr-20
EREWASH BOROUGH COUNCIL,217870,Long Eaton Market,General Publicity and Promotion,14/02/20,EREWASH SOUND,200.00,Apr-20
EREWASH BOROUGH COUNCIL,217870,Ilkeston Market,General Publicity and Promotion,14/02/20,EREWASH SOUND,200.00,Apr-20
EREWASH BOROUGH COUNCIL,217882,Building Control - Fee Earning,Subscriptions,19/03/20,EURO BUSINESS SERVICES,"1,705.00",Apr-20
EREWASH BOROUGH COUNCIL,218116,Development Control - Fee Earning,General Equipment,30/03/20,EURO BUSINESS SERVICES,359.00,Apr-20
EREWASH BOROUGH COUNCIL,217882,Building Control - Fee Earning,Printing and Stationery,19/03/20,EURO BUSINESS SERVICES,80.00,Apr-20
EREWASH BOROUGH COUNCIL,217882,Building Control - Fee Earning,General Publicity and Promotion,19/03/20,EURO BUSINESS SERVICES,230.00,Apr-20
EREWASH BOROUGH COUNCIL,218478,Trade Waste,Repairs and Maintenance,06/04/20,EUROTRUCK MIDLANDS LTD,264.00,Apr-20
EREWASH BOROUGH COUNCIL,218142,Green Space,Repairs and Maintenance,02/04/20,EUROTRUCK MIDLANDS LTD,4.85,Apr-20
EREWASH BOROUGH COUNCIL,218478,Green Space,Repairs and Maintenance,06/04/20,EUROTRUCK MIDLANDS LTD,58.50,Apr-20
EREWASH BOROUGH COUNCIL,218156,Household/Residual Waste Collection,Repairs and Maintenance,25/02/20,EUROTRUCK MIDLANDS LTD,944.00,Apr-20
EREWASH BOROUGH COUNCIL,218410,Green Space,Repairs and Maintenance,23/03/20,EUROTRUCK MIDLANDS LTD,528.00,Apr-20
EREWASH BOROUGH COUNCIL,218142,Street Scene,Repairs and Maintenance,02/04/20,EUROTRUCK MIDLANDS LTD,504.00,Apr-20
EREWASH BOROUGH COUNCIL,218062,Kerbside Dry Recycling Collection,Agency Staff,16/03/20,EXTRA PERSONNEL LTD,"1,796.34",Apr-20
EREWASH BOROUGH COUNCIL,218097,Kerbside Dry Recycling Collection,Agency Staff,02/03/20,EXTRA PERSONNEL LTD,"1,962.84",Apr-20
EREWASH BOROUGH COUNCIL,218405,Kerbside Dry Recycling Collection,Agency Staff,23/03/20,EXTRA PERSONNEL LTD,"2,157.65",Apr-20
EREWASH BOROUGH COUNCIL,218293,Green Space,Agency Staff,23/03/20,EXTRA PERSONNEL LTD,644.74,Apr-20
EREWASH BOROUGH COUNCIL,218294,Green Space,Agency Staff,23/03/20,EXTRA PERSONNEL LTD,"1,209.82",Apr-20
EREWASH BOROUGH COUNCIL,218427,Public Conveniences,Agency Staff,06/04/20,EXTRA PERSONNEL LTD,621.34,Apr-20
EREWASH BOROUGH COUNCIL,218389,Street Scene,Agency Staff,16/03/20,EXTRA PERSONNEL LTD,522.80,Apr-20
EREWASH BOROUGH COUNCIL,218294,Street Scene,Agency Staff,23/03/20,EXTRA PERSONNEL LTD,"2,404.07",Apr-20
EREWASH BOROUGH COUNCIL,218428,Street Scene,Agency Staff,30/03/20,EXTRA PERSONNEL LTD,"2,707.07",Apr-20
EREWASH BOROUGH COUNCIL,218431,Street Scene,Agency Staff,30/03/20,EXTRA PERSONNEL LTD,"4,003.95",Apr-20
EREWASH BOROUGH COUNCIL,218434,Street Scene,Agency Staff,30/03/20,EXTRA PERSONNEL LTD,328.71,Apr-20
EREWASH BOROUGH COUNCIL,218097,Household/Residual Waste Collection,Agency Staff,02/03/20,EXTRA PERSONNEL LTD,"2,944.26",Apr-20
EREWASH BOROUGH COUNCIL,218098,Kerbside Dry Recycling Collection,Agency Staff,09/03/20,EXTRA PERSONNEL LTD,"1,842.48",Apr-20
EREWASH BOROUGH COUNCIL,218020,Green Space,Agency Staff,16/03/20,EXTRA PERSONNEL LTD,"1,132.48",Apr-20
EREWASH BOROUGH COUNCIL,218427,Green Space,Agency Staff,06/04/20,EXTRA PERSONNEL LTD,322.32,Apr-20
EREWASH BOROUGH COUNCIL,218016,Green Space,Agency Staff,24/02/20,EXTRA PERSONNEL LTD,547.27,Apr-20
EREWASH BOROUGH COUNCIL,218431,Green Space,Agency Staff,30/03/20,EXTRA PERSONNEL LTD,734.66,Apr-20
EREWASH BOROUGH COUNCIL,218099,Street Scene,Agency Staff,16/03/20,EXTRA PERSONNEL LTD,"3,106.96",Apr-20
EREWASH BOROUGH COUNCIL,218428,Public Conveniences,Agency Staff,30/03/20,EXTRA PERSONNEL LTD,621.34,Apr-20
EREWASH BOROUGH COUNCIL,218293,Street Scene,Agency Staff,23/03/20,EXTRA PERSONNEL LTD,"3,300.00",Apr-20
EREWASH BOROUGH COUNCIL,218295,Street Scene,Agency Staff,23/03/20,EXTRA PERSONNEL LTD,520.74,Apr-20
EREWASH BOROUGH COUNCIL,218062,Household/Residual Waste Collection,Agency Staff,16/03/20,EXTRA PERSONNEL LTD,"2,694.51",Apr-20
EREWASH BOROUGH COUNCIL,218405,Household/Residual Waste Collection,Agency Staff,23/03/20,EXTRA PERSONNEL LTD,"3,236.47",Apr-20
EREWASH BOROUGH COUNCIL,218099,Green Space,Agency Staff,16/03/20,EXTRA PERSONNEL LTD,"1,052.70",Apr-20
EREWASH BOROUGH COUNCIL,218018,Green Space,Agency Staff,03/02/20,EXTRA PERSONNEL LTD,373.95,Apr-20
EREWASH BOROUGH COUNCIL,218058,Street Scene,Agency Staff,24/02/20,EXTRA PERSONNEL LTD,588.15,Apr-20
EREWASH BOROUGH COUNCIL,218020,Street Scene,Agency Staff,16/03/20,EXTRA PERSONNEL LTD,"2,675.71",Apr-20
EREWASH BOROUGH COUNCIL,218096,Household/Residual Waste Collection,Agency Staff,24/02/20,EXTRA PERSONNEL LTD,"2,394.26",Apr-20
EREWASH BOROUGH COUNCIL,218098,Household/Residual Waste Collection,Agency Staff,09/03/20,EXTRA PERSONNEL LTD,"2,763.72",Apr-20
EREWASH BOROUGH COUNCIL,218096,Kerbside Dry Recycling Collection,Agency Staff,24/02/20,EXTRA PERSONNEL LTD,"1,596.18",Apr-20
EREWASH BOROUGH COUNCIL,218430,Green Space,Agency Staff,06/04/20,EXTRA PERSONNEL LTD,754.88,Apr-20
EREWASH BOROUGH COUNCIL,218059,Street Scene,Agency Staff,09/03/20,EXTRA PERSONNEL LTD,392.10,Apr-20
EREWASH BOROUGH COUNCIL,218427,Street Scene,Agency Staff,06/04/20,EXTRA PERSONNEL LTD,"3,383.92",Apr-20
EREWASH BOROUGH COUNCIL,218430,Street Scene,Agency Staff,06/04/20,EXTRA PERSONNEL LTD,"3,227.39",Apr-20
EREWASH BOROUGH COUNCIL,217448,Green Space,Project Grants,10/03/20,REDACTED PERSONAL DATA,"2,636.72",Apr-20
EREWASH BOROUGH COUNCIL,217576,Green Space,Contracted Services,12/03/20,REDACTED PERSONAL DATA,74.34,Apr-20
EREWASH BOROUGH COUNCIL,217576,Green Space,Project Grants,12/03/20,REDACTED PERSONAL DATA,"1,458.28",Apr-20
EREWASH BOROUGH COUNCIL,217607,Training - Personnel Costs Only,Courses and Seminars,13/03/20,FIRST ON SCENE TRAINING LTD,210.00,Apr-20
EREWASH BOROUGH COUNCIL,217471,Revenues and Benefits,Postages,06/03/20,FRAMA UK,244.25,Apr-20
EREWASH BOROUGH COUNCIL,218479,Transport Trading Account,Software Licences,17/03/20,FUEL LINK SYSTEMS,525.00,Apr-20
EREWASH BOROUGH COUNCIL,218327,Development Control - Fee Earning,Planning Fees,22/04/20,G & R PYKETT LIMITED,"18,018.00",Apr-20
EREWASH BOROUGH COUNCIL,218285,Kerbside Dry Recycling Collection,Waste Disposal,31/03/20,GAE SMITH HOLDINGS T/A CASEPAK,"40,865.31",Apr-20
EREWASH BOROUGH COUNCIL,218100,Kerbside Dry Recycling Collection,Waste Disposal,29/02/20,GAE SMITH HOLDINGS T/A CASEPAK,"38,640.24",Apr-20
EREWASH BOROUGH COUNCIL,217906,Balance Sheet,Building Works,18/03/20,GEO POLLUTION TECHNOLOGIES UK LIMITED,"8,398.00",Apr-20
EREWASH BOROUGH COUNCIL,218279,Homelessness,Agency Staff,01/04/20,GREENACRE RECRUITMENT,285.96,Apr-20
EREWASH BOROUGH COUNCIL,217798,Homelessness,Agency Staff,11/03/20,GREENACRE RECRUITMENT,206.04,Apr-20
EREWASH BOROUGH COUNCIL,217801,Homelessness,Agency Staff,04/03/20,GREENACRE RECRUITMENT,204.96,Apr-20
EREWASH BOROUGH COUNCIL,218039,Homelessness,Agency Staff,19/03/20,GREENACRE RECRUITMENT,726.89,Apr-20
EREWASH BOROUGH COUNCIL,217798,Homelessness,Agency Staff,11/03/20,GREENACRE RECRUITMENT,744.90,Apr-20
EREWASH BOROUGH COUNCIL,217801,Homelessness,Agency Staff,04/03/20,GREENACRE RECRUITMENT,741.00,Apr-20
EREWASH BOROUGH COUNCIL,218039,Homelessness,Agency Staff,19/03/20,GREENACRE RECRUITMENT,201.06,Apr-20
EREWASH BOROUGH COUNCIL,218279,Homelessness,Agency Staff,01/04/20,GREENACRE RECRUITMENT,738.94,Apr-20
EREWASH BOROUGH COUNCIL,217562,Green Space,Materials/Consumables,06/03/20,HENTON & CHATTELL LTD,"1,824.24",Apr-20
EREWASH BOROUGH COUNCIL,218315,Balance Sheet,Payroll Collection A/c - Attachment Orders,22/04/20,HMCTS,251.46,Apr-20
EREWASH BOROUGH COUNCIL,218203,Balance Sheet,Payroll Collection A/c - Income Tax,14/04/20,HMRC CUMBERNAULD,"67,910.47",Apr-20
EREWASH BOROUGH COUNCIL,218319,Balance Sheet,Payroll Collection A/c - Income Tax,22/04/20,HMRC CUMBERNAULD,259.00,Apr-20
EREWASH BOROUGH COUNCIL,217908,Balance Sheet,Payroll Collection A/c - Income Tax,30/03/20,HMRC CUMBERNAULD,200.60,Apr-20
EREWASH BOROUGH COUNCIL,217908,Balance Sheet,Payroll Collection A/c - National Insurance,30/03/20,HMRC CUMBERNAULD,262.47,Apr-20
EREWASH BOROUGH COUNCIL,218203,Balance Sheet,Payroll Collection A/c - Recovery of Student Loan,14/04/20,HMRC CUMBERNAULD,"1,002.00",Apr-20
EREWASH BOROUGH COUNCIL,218203,Balance Sheet,Apprenticeship Levy,14/04/20,HMRC CUMBERNAULD,"3,350.00",Apr-20
EREWASH BOROUGH COUNCIL,218203,Balance Sheet,Payroll Collection A/c - National Insurance,14/04/20,HMRC CUMBERNAULD,"104,890.22",Apr-20
EREWASH BOROUGH COUNCIL,218203,Balance Sheet,Payroll Collection A/c - Statutory Maternity Pay,14/04/20,HMRC CUMBERNAULD,-273.58,Apr-20
EREWASH BOROUGH COUNCIL,218203,Personnel,Apprenticeship Levy,14/04/20,HMRC CUMBERNAULD,"-1,250.00",Apr-20
EREWASH BOROUGH COUNCIL,218308,Insurances - (Corporate matters only),Insurance - General,07/04/20,REDACTED PERSONAL DATA,"23,437.50",Apr-20
EREWASH BOROUGH COUNCIL,218109,Registration of Electors,Software Licences,30/03/20,IDOX SOFTWARE LIMITED,"13,017.73",Apr-20
EREWASH BOROUGH COUNCIL,218215,Balance Sheet,Usable Capital Receipts,09/04/20,INNES ENGLAND LTD,"1,600.00",Apr-20
EREWASH BOROUGH COUNCIL,218191,Toll Bar House - Ilkeston,Fees Costs and Expenses,02/04/20,INNES ENGLAND LTD,315.00,Apr-20
EREWASH BOROUGH COUNCIL,218091,Corporate Health and Safety,Water Testing (Legionella),27/03/20,INTEGRATED WATER SERVICES,360.00,Apr-20
EREWASH BOROUGH COUNCIL,218454,Car Parking,General Equipment,01/03/20,INTERNATIONAL PARKING SYSTEMS UK LTD,304.02,Apr-20
EREWASH BOROUGH COUNCIL,218452,Car Parking,Credit/Debit Card Charges,29/02/20,INTERNATIONAL PARKING SYSTEMS UK LTD,775.84,Apr-20
EREWASH BOROUGH COUNCIL,218453,Car Parking,Credit/Debit Card Charges,31/03/20,INTERNATIONAL PARKING SYSTEMS UK LTD,538.20,Apr-20
EREWASH BOROUGH COUNCIL,218178,Homelessness,Agency Staff,24/03/20,JAMES ANDREWS RECRUITMENT SOLUTIONS,"1,266.50",Apr-20
EREWASH BOROUGH COUNCIL,218179,Homelessness,Agency Staff,07/04/20,JAMES ANDREWS RECRUITMENT SOLUTIONS,"1,258.00",Apr-20
EREWASH BOROUGH COUNCIL,218281,Homelessness,Agency Staff,15/04/20,JAMES ANDREWS RECRUITMENT SOLUTIONS,"1,037.00",Apr-20
EREWASH BOROUGH COUNCIL,218105,Homelessness,Agency Staff,31/03/20,JAMES ANDREWS RECRUITMENT SOLUTIONS,"1,258.00",Apr-20
EREWASH BOROUGH COUNCIL,218459,Balance Sheet,Flood Hardship Fund,28/04/20,REDACTED PERSONAL DATA,500.00,Apr-20
EREWASH BOROUGH COUNCIL,218296,Insurances - (Corporate matters only),Insurance - General,09/04/20,JLT SPECIALTY LIMITED,"188,573.02",Apr-20
EREWASH BOROUGH COUNCIL,218299,Insurances - (Corporate matters only),Insurance - General,09/04/20,JLT SPECIALTY LIMITED,"2,199.89",Apr-20
EREWASH BOROUGH COUNCIL,218298,Insurances - (Corporate matters only),Insurance - General,09/04/20,JLT SPECIALTY LIMITED,"74,116.00",Apr-20
EREWASH BOROUGH COUNCIL,218300,Insurances - (Corporate matters only),Insurance - General,09/04/20,JLT SPECIALTY LIMITED,"83,501.68",Apr-20
EREWASH BOROUGH COUNCIL,218297,Insurances - (Corporate matters only),Insurance - General,09/04/20,JLT SPECIALTY LIMITED,"1,120.00",Apr-20
EREWASH BOROUGH COUNCIL,217995,Balance Sheet,Flood Hardship Fund,31/03/20,REDACTED PERSONAL DATA,500.00,Apr-20
EREWASH BOROUGH COUNCIL,218004,Green Space,Repairs and Maintenance,18/03/20,JOHNSTON SWEEPERS LTD,"1,358.09",Apr-20
EREWASH BOROUGH COUNCIL,217305,Green Space,Materials/Consumables,04/03/20,KEEP BRITAIN TIDY,329.00,Apr-20
EREWASH BOROUGH COUNCIL,217306,Green Space,Materials/Consumables,04/03/20,KEEP BRITAIN TIDY,439.00,Apr-20
EREWASH BOROUGH COUNCIL,217307,Pride In Erewash,Materials/Consumables,04/03/20,KEEP BRITAIN TIDY,379.00,Apr-20
EREWASH BOROUGH COUNCIL,217303,Pride In Erewash,Materials/Consumables,04/03/20,KEEP BRITAIN TIDY,329.00,Apr-20
EREWASH BOROUGH COUNCIL,217304,Green Space,Materials/Consumables,04/03/20,KEEP BRITAIN TIDY,329.00,Apr-20
EREWASH BOROUGH COUNCIL,218123,Balance Sheet,Childcare Salary Sacrifice-Kiddie Vouchers,03/04/20,KIDDIVOUCHERS LTD,"1,130.19",Apr-20
EREWASH BOROUGH COUNCIL,218282,Car Parking,Contracted Services,31/03/20,KINGS ARMOURED SECURITY SERVICES,"1,033.95",Apr-20
EREWASH BOROUGH COUNCIL,217999,Front Line Support Services,Security,31/03/20,KINGS ARMOURED SECURITY SERVICES,663.90,Apr-20
EREWASH BOROUGH COUNCIL,218014,Car Parking,Contracted Services,29/02/20,KINGS ARMOURED SECURITY SERVICES,"1,199.00",Apr-20
EREWASH BOROUGH COUNCIL,217980,Reprographics,Equipment Leasing Charge,12/03/20,KONICA MINOLTA BUSINESS SOLUTIONS (UK) LTD,"1,014.93",Apr-20
EREWASH BOROUGH COUNCIL,217979,Reprographics,Equipment Leasing Charge,12/03/20,KONICA MINOLTA BUSINESS SOLUTIONS (UK) LTD,"1,403.40",Apr-20
EREWASH BOROUGH COUNCIL,217776,ICT Support Services,Equipment Leasing Charge,18/03/20,KYOCERA DOCUMENT SOLUTIONS (UK) LTD,"2,634.42",Apr-20
EREWASH BOROUGH COUNCIL,217652,Christmas Lights,Planned Preventative Maintenance,16/03/20,LEISURE LITES LIMTED,"2,600.00",Apr-20
EREWASH BOROUGH COUNCIL,217652,Christmas Lights,Repairs and Maintenance,16/03/20,LEISURE LITES LIMTED,"2,200.00",Apr-20
EREWASH BOROUGH COUNCIL,217917,Parish Precepts,Little Eaton - Precept,30/03/20,LITTLE EATON PARISH COUNCIL,"4,341.00",Apr-20
EREWASH BOROUGH COUNCIL,217917,Parish Council Concurrent Functions,Little Eaton - Precept,30/03/20,LITTLE EATON PARISH COUNCIL,"3,257.00",Apr-20
EREWASH BOROUGH COUNCIL,218333,Performance Management,Software Licences,24/04/20,LOCAL GOVERNMENT ASSOCIATION,"1,025.00",Apr-20
EREWASH BOROUGH COUNCIL,218328,Chief Executives Office,Subscription - Local Government Assoc.,09/04/20,LOCAL GOVERNMENT ASSOCIATION,"10,659.00",Apr-20
EREWASH BOROUGH COUNCIL,218011,Kerbside Dry Recycling Collection,Tyres,29/02/20,LODGE TYRE COMPANY LTD,687.50,Apr-20
EREWASH BOROUGH COUNCIL,218037,Trade Waste,Tyres,31/03/20,LODGE TYRE COMPANY LTD,147.50,Apr-20
EREWASH BOROUGH COUNCIL,218037,Dog Control,Tyres,31/03/20,LODGE TYRE COMPANY LTD,48.00,Apr-20
EREWASH BOROUGH COUNCIL,218037,Kerbside Dry Recycling Collection,Tyres,31/03/20,LODGE TYRE COMPANY LTD,"1,480.00",Apr-20
EREWASH BOROUGH COUNCIL,218011,Household/Residual Waste Collection,Tyres,29/02/20,LODGE TYRE COMPANY LTD,"1,682.50",Apr-20
EREWASH BOROUGH COUNCIL,218011,Neighbourhood Wardens,Tyres,29/02/20,LODGE TYRE COMPANY LTD,96.00,Apr-20
EREWASH BOROUGH COUNCIL,218037,Outreach Project,Tyres,31/03/20,LODGE TYRE COMPANY LTD,15.00,Apr-20
EREWASH BOROUGH COUNCIL,218037,Household/Residual Waste Collection,Tyres,31/03/20,LODGE TYRE COMPANY LTD,980.00,Apr-20
EREWASH BOROUGH COUNCIL,218037,Street Scene,Tyres,31/03/20,LODGE TYRE COMPANY LTD,240.00,Apr-20
EREWASH BOROUGH COUNCIL,218011,Green Space,Tyres,29/02/20,LODGE TYRE COMPANY LTD,365.00,Apr-20
EREWASH BOROUGH COUNCIL,218011,Street Scene,Tyres,29/02/20,LODGE TYRE COMPANY LTD,814.00,Apr-20
EREWASH BOROUGH COUNCIL,218037,Green Space,Tyres,31/03/20,LODGE TYRE COMPANY LTD,485.00,Apr-20
EREWASH BOROUGH COUNCIL,218011,Property and Estates,Tyres,29/02/20,LODGE TYRE COMPANY LTD,15.00,Apr-20
EREWASH BOROUGH COUNCIL,217892,Balance Sheet,ICT Software Licence Payment in Advance,26/03/20,MANAGE ENGINE,"4,274.00",Apr-20
EREWASH BOROUGH COUNCIL,218233,Green Space,Materials/Consumables,07/04/20,MARK DOUGLAS INDUSTRIAL SUPPLIES LTD,311.20,Apr-20
EREWASH BOROUGH COUNCIL,217849,CCTV - Ilkeston and Long Eaton,Maintenance of Equipment,19/03/20,MARK DOUGLAS INDUSTRIAL SUPPLIES LTD,347.59,Apr-20
EREWASH BOROUGH COUNCIL,217508,Council Tax Collection,Fees Costs and Expenses,07/03/20,MARSTON HOLDINGS LIMITED,0.00,Apr-20
EREWASH BOROUGH COUNCIL,217716,Council Tax Collection,Fees Costs and Expenses,14/03/20,MARSTON HOLDINGS LIMITED,0.00,Apr-20
EREWASH BOROUGH COUNCIL,217991,Council Tax Collection,Fees Costs and Expenses,25/03/20,MARSTON HOLDINGS LIMITED,0.00,Apr-20
EREWASH BOROUGH COUNCIL,217585,Building Control - Fee Earning,Agency Staff,05/03/20,MATCHTECH GROUP (UK) LIMITED,770.00,Apr-20
EREWASH BOROUGH COUNCIL,217877,Building Control - Fee Earning,Agency Staff,20/03/20,MATCHTECH GROUP (UK) LIMITED,"1,237.50",Apr-20
EREWASH BOROUGH COUNCIL,218112,Building Control - Fee Earning,Agency Staff,03/04/20,MATCHTECH GROUP (UK) LIMITED,770.00,Apr-20
EREWASH BOROUGH COUNCIL,218110,Building Control - Fee Earning,Agency Staff,03/04/20,MATCHTECH GROUP (UK) LIMITED,"2,475.00",Apr-20
EREWASH BOROUGH COUNCIL,217880,Building Control - Fee Earning,Agency Staff,13/03/20,MATCHTECH GROUP (UK) LIMITED,"1,237.50",Apr-20
EREWASH BOROUGH COUNCIL,217583,Building Control - Fee Earning,Agency Staff,05/03/20,MATCHTECH GROUP (UK) LIMITED,"1,237.50",Apr-20
EREWASH BOROUGH COUNCIL,217875,Building Control - Fee Earning,Agency Staff,26/03/20,MATCHTECH GROUP (UK) LIMITED,"1,237.50",Apr-20
EREWASH BOROUGH COUNCIL,218111,Building Control - Fee Earning,Agency Staff,03/04/20,MATCHTECH GROUP (UK) LIMITED,770.00,Apr-20
EREWASH BOROUGH COUNCIL,217662,Property and Estates,PPM Mechanical and Equipment,19/03/20,MDB PLUMBING (NOTTM) LTD,"2,363.20",Apr-20
EREWASH BOROUGH COUNCIL,217977,Property and Estates,PPM Mechanical and Equipment,31/03/20,MDB PLUMBING (NOTTM) LTD,249.37,Apr-20
EREWASH BOROUGH COUNCIL,217676,Property and Estates,Repairs and Maintenance,18/03/20,MDB PLUMBING (NOTTM) LTD,723.79,Apr-20
EREWASH BOROUGH COUNCIL,217677,Property and Estates,Repairs and Maintenance,18/03/20,MDB PLUMBING (NOTTM) LTD,706.50,Apr-20
EREWASH BOROUGH COUNCIL,217675,Green Space,Materials/Consumables,18/03/20,MDB PLUMBING (NOTTM) LTD,"2,011.50",Apr-20
EREWASH BOROUGH COUNCIL,217679,Property and Estates,Repairs and Maintenance,18/03/20,MDB PLUMBING (NOTTM) LTD,210.88,Apr-20
EREWASH BOROUGH COUNCIL,217674,Property and Estates,Repairs and Maintenance,18/03/20,MDB PLUMBING (NOTTM) LTD,645.87,Apr-20
EREWASH BOROUGH COUNCIL,218380,Car Parking,Contracted Services,31/03/20,METRIC GROUP LTD,"2,447.93",Apr-20
EREWASH BOROUGH COUNCIL,217975,Balance Sheet,Flood Hardship Fund,30/03/20,REDACTED PERSONAL DATA,500.00,Apr-20
EREWASH BOROUGH COUNCIL,217918,Parish Council Concurrent Functions,Morley - Precept,30/03/20,MORLEY PARISH COUNCIL,340.00,Apr-20
EREWASH BOROUGH COUNCIL,217918,Parish Precepts,Morley - Precept,30/03/20,MORLEY PARISH COUNCIL,"1,150.00",Apr-20
EREWASH BOROUGH COUNCIL,217625,Property and Estates,Repairs and Maintenance,04/03/20,MORRIS VERMAPORT LTD.,292.00,Apr-20
EREWASH BOROUGH COUNCIL,217741,Pedestrian Zones - Ilkeston and Long Eaton,Reactive Maintenance,17/03/20,N B CONSTRUCTION,339.48,Apr-20
EREWASH BOROUGH COUNCIL,217619,Pedestrian Zones - Ilkeston and Long Eaton,Reactive Maintenance,07/03/20,N B CONSTRUCTION,475.00,Apr-20
EREWASH BOROUGH COUNCIL,217357,Parks Other Buildings,Bridge Repairs and Maintenance,04/03/20,N B CONSTRUCTION,"1,750.00",Apr-20
EREWASH BOROUGH COUNCIL,217616,Pedestrian Zones - Ilkeston and Long Eaton,Reactive Maintenance,11/03/20,N B CONSTRUCTION,308.69,Apr-20
EREWASH BOROUGH COUNCIL,218461,Property and Estates,Reactive Maintenance,28/04/20,NEP ENERGY SERVICES LIMITED,"1,000.00",Apr-20
EREWASH BOROUGH COUNCIL,217397,Street Scene,Street Furniture,05/03/20,NIBRA SIGNS LTD,"5,230.00",Apr-20
EREWASH BOROUGH COUNCIL,217397,Green Space,Materials/Consumables,05/03/20,NIBRA SIGNS LTD,531.84,Apr-20
EREWASH BOROUGH COUNCIL,217397,Street Scene,Contracted Services,05/03/20,NIBRA SIGNS LTD,910.99,Apr-20
EREWASH BOROUGH COUNCIL,217414,Street Scene,Materials/Consumables,05/03/20,NIBRA SIGNS LTD,89.22,Apr-20
EREWASH BOROUGH COUNCIL,217414,Street Scene,Street Furniture,05/03/20,NIBRA SIGNS LTD,875.80,Apr-20
EREWASH BOROUGH COUNCIL,217706,Arts Development,Special Events,11/03/20,REDACTED PERSONAL DATA,350.00,Apr-20
EREWASH BOROUGH COUNCIL,217994,Balance Sheet,Flood Hardship Fund,31/03/20,REDACTED PERSONAL DATA,500.00,Apr-20
EREWASH BOROUGH COUNCIL,218139,Legal Services,"Stamp Duty,Search and Legal Fees",03/04/20,NO5 CHAMBERS LTD COLLECTION ACCOUNT,"1,000.00",Apr-20
EREWASH BOROUGH COUNCIL,218395,Civic Accommodation - Ilkeston,Paper Recycling and Shredding,19/03/20,NOTTINGHAM CITY COUNCIL..,231.00,Apr-20
EREWASH BOROUGH COUNCIL,217981,Training - Personnel Costs Only,Courses and Seminars,23/03/20,NOTTINGHAM CITY COUNCIL..,297.00,Apr-20
EREWASH BOROUGH COUNCIL,218007,Household/Residual Waste Collection,Training,10/03/20,NOTTINGHAM CITY COUNCIL..,288.00,Apr-20
EREWASH BOROUGH COUNCIL,217989,ICT Support Services,Mobile Phones,28/03/20,O2 UK LTD,"1,435.19",Apr-20
EREWASH BOROUGH COUNCIL,217919,Parish Council Concurrent Functions,Ockbrook - Precept,30/03/20,OCKBROOK AND BORROWASH PARISH COUNCIL,"5,933.00",Apr-20
EREWASH BOROUGH COUNCIL,217919,Parish Precepts,Ockbrook - Precept,30/03/20,OCKBROOK AND BORROWASH PARISH COUNCIL,"21,933.00",Apr-20
EREWASH BOROUGH COUNCIL,218464,Urban Renewal,Agency Staff,08/04/20,OSBORNE RICHARDSON,"1,170.00",Apr-20
EREWASH BOROUGH COUNCIL,218463,Urban Renewal,Agency Staff,08/04/20,OSBORNE RICHARDSON,"1,202.50",Apr-20
EREWASH BOROUGH COUNCIL,218465,Urban Renewal,Agency Staff,15/04/20,OSBORNE RICHARDSON,958.75,Apr-20
EREWASH BOROUGH COUNCIL,218040,Urban Renewal,Agency Staff,25/03/20,OSBORNE RICHARDSON,"1,202.50",Apr-20
EREWASH BOROUGH COUNCIL,217947,Car Parking,Contracted Services,11/12/19,PAPERWORK UK LTD,236.25,Apr-20
EREWASH BOROUGH COUNCIL,217946,Car Parking,Contracted Services,16/03/20,PAPERWORK UK LTD,425.00,Apr-20
EREWASH BOROUGH COUNCIL,218038,Car Parking,General Equipment,26/03/20,PAPERWORK UK LTD,444.43,Apr-20
EREWASH BOROUGH COUNCIL,217883,Green Space,Contracted Services,27/03/20,PARKIN CONTRACTORS LTD,"18,100.00",Apr-20
EREWASH BOROUGH COUNCIL,217883,Balance Sheet,Building Works,27/03/20,PARKIN CONTRACTORS LTD,"4,352.30",Apr-20
EREWASH BOROUGH COUNCIL,217442,Sports Development Coaching & Courses,Contracted Services,04/03/20,PARKSIDE HIGH CIC,840.00,Apr-20
EREWASH BOROUGH COUNCIL,217748,Leisure Contract,Contracted Services,18/03/20,PARKWOOD LEISURE LTD,"25,700.00",Apr-20
EREWASH BOROUGH COUNCIL,217748,Operational Non Leisure Departmental,Courses and Seminars,18/03/20,PARKWOOD LEISURE LTD,"1,033.42",Apr-20
EREWASH BOROUGH COUNCIL,217632,Property and Estates,PPM Mechanical and Equipment,12/03/20,PEEL ELECTRICAL LTD,244.64,Apr-20
EREWASH BOROUGH COUNCIL,217372,Property and Estates,Repairs and Maintenance,06/03/20,PEEL ELECTRICAL LTD,352.75,Apr-20
EREWASH BOROUGH COUNCIL,217692,Property and Estates,Repairs and Maintenance,17/03/20,PEEL ELECTRICAL LTD,860.86,Apr-20
EREWASH BOROUGH COUNCIL,217993,Council Tax Collection,Fees Costs and Expenses,30/03/20,PENHAM EXCEL LIMITED,0.00,Apr-20
EREWASH BOROUGH COUNCIL,218267,Council Tax Collection,Fees Costs and Expenses,17/04/20,PENHAM EXCEL LIMITED,0.00,Apr-20
EREWASH BOROUGH COUNCIL,217951,Green Space,Materials/Consumables,15/03/20,PENTLAND PLANTS LTD,"1,306.00",Apr-20
EREWASH BOROUGH COUNCIL,218473,Homelessness,Contracted Services,31/03/20,PEOPLE POTENTIAL POSSIBILITIES,"13,214.33",Apr-20
EREWASH BOROUGH COUNCIL,218473,Homelessness,Contracted Services,31/03/20,PEOPLE POTENTIAL POSSIBILITIES,"13,829.50",Apr-20
EREWASH BOROUGH COUNCIL,218001,Green Space,Repairs and Maintenance,19/03/20,PERRYS,683.88,Apr-20
EREWASH BOROUGH COUNCIL,218074,Kerbside Dry Recycling Collection,Repairs and Maintenance,30/03/20,PIRTEK (DERBY),235.21,Apr-20
EREWASH BOROUGH COUNCIL,218073,Kerbside Dry Recycling Collection,Repairs and Maintenance,30/03/20,PIRTEK (DERBY),225.60,Apr-20
EREWASH BOROUGH COUNCIL,217331,Green Space,Repairs and Maintenance,05/03/20,PLATTS HARRIS LIMITED,"3,497.77",Apr-20
EREWASH BOROUGH COUNCIL,218367,Homelessness Prevention,Contribution to Shared Service,13/03/20,POLICE AND CRIME COMMISSIONER FOR DERBYSHIRE,"3,419.50",Apr-20
EREWASH BOROUGH COUNCIL,218325,Green Space,Road Taxes,22/04/20,POST OFFICE LTD,"1,300.00",Apr-20
EREWASH BOROUGH COUNCIL,218325,Household/Residual Waste Collection,Road Taxes,22/04/20,POST OFFICE LTD,"2,160.00",Apr-20
EREWASH BOROUGH COUNCIL,218326,Household/Residual Waste Collection,Road Taxes,22/04/20,POST OFFICE LTD,"4,320.00",Apr-20
EREWASH BOROUGH COUNCIL,218325,Kerbside Dry Recycling Collection,Road Taxes,22/04/20,POST OFFICE LTD,615.00,Apr-20
EREWASH BOROUGH COUNCIL,218325,Pewit Golf Course,Road Taxes,22/04/20,POST OFFICE LTD,260.00,Apr-20
EREWASH BOROUGH COUNCIL,217732,Green Space,Repairs and Maintenance,19/03/20,PROBRUSH,518.72,Apr-20
EREWASH BOROUGH COUNCIL,218093,Household/Residual Waste Collection,Protective Clothing,23/03/20,PROTECTIVE WEAR SUPPLIES LTD,148.07,Apr-20
EREWASH BOROUGH COUNCIL,218093,Trade Waste,Protective Clothing,23/03/20,PROTECTIVE WEAR SUPPLIES LTD,79.73,Apr-20
EREWASH BOROUGH COUNCIL,217735,Green Space,Repairs and Maintenance,16/03/20,PROTECTIVE WEAR SUPPLIES LTD,380.90,Apr-20
EREWASH BOROUGH COUNCIL,218093,Kerbside Dry Recycling Collection,Protective Clothing,23/03/20,PROTECTIVE WEAR SUPPLIES LTD,11.39,Apr-20
EREWASH BOROUGH COUNCIL,218404,Household/Residual Waste Collection,Protective Clothing,01/04/20,PROTECTIVE WEAR SUPPLIES LTD,205.96,Apr-20
EREWASH BOROUGH COUNCIL,218093,Transport Trading Account,Protective Clothing,23/03/20,PROTECTIVE WEAR SUPPLIES LTD,307.53,Apr-20
EREWASH BOROUGH COUNCIL,218404,Kerbside Dry Recycling Collection,Protective Clothing,01/04/20,PROTECTIVE WEAR SUPPLIES LTD,205.96,Apr-20
EREWASH BOROUGH COUNCIL,217837,Car Parking,General Equipment,18/03/20,PROTECTIVE WEAR SUPPLIES LTD,552.00,Apr-20
EREWASH BOROUGH COUNCIL,218309,Balance Sheet,Payroll Collection A/c - AVCS,22/04/20,PRUDENTIAL,"6,122.50",Apr-20
EREWASH BOROUGH COUNCIL,217976,Balance Sheet,Payroll Collection A/c - AVCS,31/03/20,PRUDENTIAL,"6,442.50",Apr-20
EREWASH BOROUGH COUNCIL,217668,Performance Management,Consultants Fees,19/03/20,Q2 LIMITED,"1,540.00",Apr-20
EREWASH BOROUGH COUNCIL,217807,CCTV - Ilkeston and Long Eaton,Maintenance of Equipment,12/03/20,QUADRANT SECURITY GROUP,667.23,Apr-20
EREWASH BOROUGH COUNCIL,218390,CCTV - Ilkeston and Long Eaton,Contracted Services,07/04/20,QUADRANT SECURITY GROUP,"7,920.50",Apr-20
EREWASH BOROUGH COUNCIL,218384,Kerbside Dry Recycling Collection,Agency Staff,16/04/20,QUALITY SERVICE RECRUITMENT LTD,516.21,Apr-20
EREWASH BOROUGH COUNCIL,218292,Household/Residual Waste Collection,Agency Staff,31/03/20,QUALITY SERVICE RECRUITMENT LTD,318.13,Apr-20
EREWASH BOROUGH COUNCIL,218106,Household/Residual Waste Collection,Agency Staff,26/03/20,QUALITY SERVICE RECRUITMENT LTD,318.13,Apr-20
EREWASH BOROUGH COUNCIL,218292,Kerbside Dry Recycling Collection,Agency Staff,31/03/20,QUALITY SERVICE RECRUITMENT LTD,236.87,Apr-20
EREWASH BOROUGH COUNCIL,218106,Kerbside Dry Recycling Collection,Agency Staff,26/03/20,QUALITY SERVICE RECRUITMENT LTD,212.08,Apr-20
EREWASH BOROUGH COUNCIL,218385,Household/Residual Waste Collection,Agency Staff,09/04/20,QUALITY SERVICE RECRUITMENT LTD,651.13,Apr-20
EREWASH BOROUGH COUNCIL,218101,Kerbside Dry Recycling Collection,Agency Staff,19/03/20,QUALITY SERVICE RECRUITMENT LTD,212.08,Apr-20
EREWASH BOROUGH COUNCIL,218385,Kerbside Dry Recycling Collection,Agency Staff,09/04/20,QUALITY SERVICE RECRUITMENT LTD,434.08,Apr-20
EREWASH BOROUGH COUNCIL,218101,Household/Residual Waste Collection,Agency Staff,19/03/20,QUALITY SERVICE RECRUITMENT LTD,318.13,Apr-20
EREWASH BOROUGH COUNCIL,218384,Household/Residual Waste Collection,Agency Staff,16/04/20,QUALITY SERVICE RECRUITMENT LTD,774.31,Apr-20
EREWASH BOROUGH COUNCIL,218072,Transport Trading Account,Agency Staff,30/03/20,QUESTECH RECRUITMENT LTD,906.50,Apr-20
EREWASH BOROUGH COUNCIL,218339,Transport Trading Account,Agency Staff,07/04/20,QUESTECH RECRUITMENT LTD,906.50,Apr-20
EREWASH BOROUGH COUNCIL,218340,Transport Trading Account,Agency Staff,14/04/20,QUESTECH RECRUITMENT LTD,784.00,Apr-20
EREWASH BOROUGH COUNCIL,218071,Transport Trading Account,Agency Staff,23/03/20,QUESTECH RECRUITMENT LTD,906.50,Apr-20
EREWASH BOROUGH COUNCIL,218341,Transport Trading Account,Agency Staff,20/04/20,QUESTECH RECRUITMENT LTD,710.50,Apr-20
EREWASH BOROUGH COUNCIL,218348,Transport Trading Account,Agency Staff,09/03/20,QUESTECH RECRUITMENT LTD,833.00,Apr-20
EREWASH BOROUGH COUNCIL,218448,Building Control - Fee Earning,Contracted Services,23/03/20,RANSOMWOOD ESTATES UK LIMITED,531.67,Apr-20
EREWASH BOROUGH COUNCIL,218442,Building Control - Fee Earning,Contracted Services,23/03/20,RANSOMWOOD ESTATES UK LIMITED,"1,154.30",Apr-20
EREWASH BOROUGH COUNCIL,218136,Personnel,Subscriptions,01/04/20,REED BUSINESS INFORMATION LTD,980.00,Apr-20
EREWASH BOROUGH COUNCIL,218227,Balance Sheet,Customer Debtor Refunds,15/04/20,REDACTED PERSONAL DATA,250.00,Apr-20
EREWASH BOROUGH COUNCIL,218022,Atmospheric Pollution,Contracted Services,31/03/20,RICARDO-AEA LTD,"1,078.50",Apr-20
EREWASH BOROUGH COUNCIL,218250,Green Space,Materials/Consumables,07/04/20,RIGBY TAYLOR LTD,"1,050.00",Apr-20
EREWASH BOROUGH COUNCIL,217704,Green Space,Materials/Consumables,05/03/20,RIGBY TAYLOR LTD,550.00,Apr-20
EREWASH BOROUGH COUNCIL,217754,Green Space,Materials/Consumables,17/03/20,RIGBY TAYLOR LTD,613.50,Apr-20
EREWASH BOROUGH COUNCIL,217920,Parish Precepts,Risley - Precept,30/03/20,RISLEY WITH HOPWELL PARISH COUNCIL,"2,379.00",Apr-20
EREWASH BOROUGH COUNCIL,217920,Parish Council Concurrent Functions,Risley - Precept,30/03/20,RISLEY WITH HOPWELL PARISH COUNCIL,"1,837.00",Apr-20
EREWASH BOROUGH COUNCIL,218307,Balance Sheet,Flood Hardship Fund,21/04/20,REDACTED PERSONAL DATA,500.00,Apr-20
EREWASH BOROUGH COUNCIL,218190,Revenues and Benefits,Postages,01/04/20,ROYAL MAIL GROUP LTD.,"1,410.96",Apr-20
EREWASH BOROUGH COUNCIL,218012,Revenues and Benefits,Postages,06/03/20,ROYAL MAIL GROUP LTD.,333.00,Apr-20
EREWASH BOROUGH COUNCIL,218210,Revenues and Benefits,Postages,06/04/20,ROYAL MAIL GROUP LTD.,333.00,Apr-20
EREWASH BOROUGH COUNCIL,218419,Revenues and Benefits,Postages,22/04/20,ROYAL MAIL GROUP LTD.,"2,628.53",Apr-20
EREWASH BOROUGH COUNCIL,218446,Revenues and Benefits,Postages,22/04/20,ROYAL MAIL GROUP LTD.,"1,668.58",Apr-20
EREWASH BOROUGH COUNCIL,218013,Revenues and Benefits,Postages,18/03/20,ROYAL MAIL GROUP LTD.,"1,016.72",Apr-20
EREWASH BOROUGH COUNCIL,218445,Revenues and Benefits,Postages,15/04/20,ROYAL MAIL GROUP LTD.,"1,139.01",Apr-20
EREWASH BOROUGH COUNCIL,218456,Balance Sheet,Flood Hardship Fund,22/04/20,REDACTED PERSONAL DATA,500.00,Apr-20
EREWASH BOROUGH COUNCIL,217921,Parish Council Concurrent Functions,Sandiacre - Precept,30/03/20,SANDIACRE PARISH COUNCIL,"6,680.00",Apr-20
EREWASH BOROUGH COUNCIL,217921,Parish Precepts,Sandiacre - Precept,30/03/20,SANDIACRE PARISH COUNCIL,"12,501.00",Apr-20
EREWASH BOROUGH COUNCIL,218086,Street Scene,Repairs and Maintenance,03/02/20,SANDICLIFFE LIMITED,690.00,Apr-20
EREWASH BOROUGH COUNCIL,217922,Parish Council Concurrent Functions,Sawley - Precept,30/03/20,SAWLEY PARISH COUNCIL,530.00,Apr-20
EREWASH BOROUGH COUNCIL,217922,Parish Precepts,Sawley - Precept,30/03/20,SAWLEY PARISH COUNCIL,"11,801.00",Apr-20
EREWASH BOROUGH COUNCIL,217603,Street Scene,Repairs and Maintenance,11/03/20,SCARAB SWEEPERS LTD,"1,877.39",Apr-20
EREWASH BOROUGH COUNCIL,217928,Balance Sheet,PCC - Election,27/03/20,SCI PRINT LTD,"1,855.80",Apr-20
EREWASH BOROUGH COUNCIL,217929,Balance Sheet,PCC - Election,27/03/20,SCI PRINT LTD,"1,230.36",Apr-20
EREWASH BOROUGH COUNCIL,218153,Long Eaton Market,Metered Water,01/04/20,SCOTTISH WATER BUSINESS STREAM LIMITED,160.38,Apr-20
EREWASH BOROUGH COUNCIL,218153,Public Conveniences,Metered Water,01/04/20,SCOTTISH WATER BUSINESS STREAM LIMITED,"1,219.94",Apr-20
EREWASH BOROUGH COUNCIL,218153,Shopmobility - Ilkeston,Metered Water,01/04/20,SCOTTISH WATER BUSINESS STREAM LIMITED,38.80,Apr-20
EREWASH BOROUGH COUNCIL,218153,Civic Accommodation - Long Eaton,Metered Water,01/04/20,SCOTTISH WATER BUSINESS STREAM LIMITED,18.51,Apr-20
EREWASH BOROUGH COUNCIL,218153,Green Space,Metered Water,01/04/20,SCOTTISH WATER BUSINESS STREAM LIMITED,593.55,Apr-20
EREWASH BOROUGH COUNCIL,218153,Civic Accommodation - Ilkeston,Metered Water,01/04/20,SCOTTISH WATER BUSINESS STREAM LIMITED,406.15,Apr-20
EREWASH BOROUGH COUNCIL,218153,Cemeteries,Metered Water,01/04/20,SCOTTISH WATER BUSINESS STREAM LIMITED,75.79,Apr-20
EREWASH BOROUGH COUNCIL,218153,Abbotsford Community Centre,Unmetered Water,01/04/20,SCOTTISH WATER BUSINESS STREAM LIMITED,126.55,Apr-20
EREWASH BOROUGH COUNCIL,218153,Allotments,Metered Water,01/04/20,SCOTTISH WATER BUSINESS STREAM LIMITED,-299.68,Apr-20
EREWASH BOROUGH COUNCIL,218153,Rutland Sports Park,Metered Water,01/04/20,SCOTTISH WATER BUSINESS STREAM LIMITED,72.34,Apr-20
EREWASH BOROUGH COUNCIL,218153,Erewash Museum,Unmetered Water,01/04/20,SCOTTISH WATER BUSINESS STREAM LIMITED,51.59,Apr-20
EREWASH BOROUGH COUNCIL,218153,Merlin Way Depot - Ilkeston,Metered Water,01/04/20,SCOTTISH WATER BUSINESS STREAM LIMITED,"1,141.38",Apr-20
EREWASH BOROUGH COUNCIL,218153,Shopmobility - Long Eaton,Metered Water,01/04/20,SCOTTISH WATER BUSINESS STREAM LIMITED,11.84,Apr-20
EREWASH BOROUGH COUNCIL,218153,Cotmanhay Pavilion,Unmetered Water,01/04/20,SCOTTISH WATER BUSINESS STREAM LIMITED,24.32,Apr-20
EREWASH BOROUGH COUNCIL,218153,Car Parking,Unmetered Water,01/04/20,SCOTTISH WATER BUSINESS STREAM LIMITED,3.99,Apr-20
EREWASH BOROUGH COUNCIL,217926,ICT Support Services,Security,24/03/20,SECTIGO LIMITED,"1,026.00",Apr-20
EREWASH BOROUGH COUNCIL,217742,Street Scene,Maintenance of Bus Shelters,23/03/20,SHELTER MAINTENANCE CO,515.00,Apr-20
EREWASH BOROUGH COUNCIL,218254,Green Space,Contracted Services,07/04/20,SMART TRAFFIC SOLUTIONS,775.00,Apr-20
EREWASH BOROUGH COUNCIL,218242,Community Consultation and Involvement,Survey Fees,30/04/20,SNAP SURVEYS LIMITED,"1,660.00",Apr-20
EREWASH BOROUGH COUNCIL,218246,Democratic Representation,Communications costs,05/03/20,SNOW ELK PRODUCTIONS,400.00,Apr-20
EREWASH BOROUGH COUNCIL,217959,ICT Support Services,Security,18/03/20,SOFTCAT LTD,"3,180.00",Apr-20
EREWASH BOROUGH COUNCIL,218057,Homelessness,Temporary Accommodation,15/05/19,SOUTH DERBYSHIRE DISTRICT COUNCIL,319.13,Apr-20
EREWASH BOROUGH COUNCIL,217911,Parish Council Concurrent Functions,Stanley - Precept,30/03/20,STANLEY & STANLEY COMMON PARISH COUNCIL,"2,065.00",Apr-20
EREWASH BOROUGH COUNCIL,217911,Parish Precepts,Stanley - Precept,30/03/20,STANLEY & STANLEY COMMON PARISH COUNCIL,"4,409.00",Apr-20
EREWASH BOROUGH COUNCIL,217923,Parish Council Concurrent Functions,Stanton by Dale - Precept,30/03/20,STANTON-BY-DALE PARISH COUNCIL,"1,133.00",Apr-20
EREWASH BOROUGH COUNCIL,217923,Parish Precepts,Stanton by Dale - Precept,30/03/20,STANTON-BY-DALE PARISH COUNCIL,"1,492.00",Apr-20
EREWASH BOROUGH COUNCIL,217736,Green Space,Hire Charges,05/03/20,STEELCRAFT FABRICATIONS,478.95,Apr-20
EREWASH BOROUGH COUNCIL,217871,Car Parking,Reactive Maintenance,27/03/20,STEELCRAFT FABRICATIONS,220.00,Apr-20
EREWASH BOROUGH COUNCIL,217930,Green Space,Contracted Services,27/03/20,STEELCRAFT FABRICATIONS,"1,995.00",Apr-20
EREWASH BOROUGH COUNCIL,217783,Closed Cemeteries,Planned Preventative Maintenance,24/03/20,STEELCRAFT FABRICATIONS,"1,770.00",Apr-20
EREWASH BOROUGH COUNCIL,217935,Green Space,Repairs and Maintenance,24/03/20,STEELCRAFT FABRICATIONS,220.00,Apr-20
EREWASH BOROUGH COUNCIL,217691,Car Parking,Reactive Maintenance,18/03/20,STEELCRAFT FABRICATIONS,275.00,Apr-20
EREWASH BOROUGH COUNCIL,218000,Green Space,Repairs and Maintenance,18/03/20,STEELCRAFT FABRICATIONS,300.00,Apr-20
EREWASH BOROUGH COUNCIL,217736,Green Space,Repairs and Maintenance,05/03/20,STEELCRAFT FABRICATIONS,391.05,Apr-20
EREWASH BOROUGH COUNCIL,217931,Green Space,Contracted Services,27/03/20,STEELCRAFT FABRICATIONS,700.00,Apr-20
EREWASH BOROUGH COUNCIL,217932,Green Space,Contracted Services,27/03/20,STEELCRAFT FABRICATIONS,205.66,Apr-20
EREWASH BOROUGH COUNCIL,217932,Green Space,Contracted Services,27/03/20,STEELCRAFT FABRICATIONS,"1,139.34",Apr-20
EREWASH BOROUGH COUNCIL,217872,Property and Estates,Planned Preventative Maintenance,27/03/20,STEELCRAFT FABRICATIONS,575.00,Apr-20
EREWASH BOROUGH COUNCIL,218391,Corporate Health and Safety,Water Testing (Legionella),31/03/20,STERILIZING SERVICES LTD,533.80,Apr-20
EREWASH BOROUGH COUNCIL,217695,Green Space,Materials/Consumables,16/03/20,STREETMASTER (SOUTH WALES) LTD,824.00,Apr-20
EREWASH BOROUGH COUNCIL,217749,Pride In Erewash,Spend to Save,19/03/20,T H HEATH  CONTRACTS  LTD,"6,747.55",Apr-20
EREWASH BOROUGH COUNCIL,217749,Operational Non Leisure Departmental,Courses and Seminars,19/03/20,T H HEATH  CONTRACTS  LTD,"1,497.45",Apr-20
EREWASH BOROUGH COUNCIL,217894,Property and Estates,Alarms Reactive Maintenance,25/03/20,TECSERV UK,"1,748.23",Apr-20
EREWASH BOROUGH COUNCIL,218121,Property and Estates,Alarms Planned Maintenence,06/03/20,TECSERV UK,968.08,Apr-20
EREWASH BOROUGH COUNCIL,218114,ICT Support Services,Telephones,01/04/20,TELEPHONE TECHNOLOGY LTD,210.00,Apr-20
EREWASH BOROUGH COUNCIL,217786,Balance Sheet,Fuel Store,16/03/20,TENNANTS DISTRIBUTION LTD,340.00,Apr-20
EREWASH BOROUGH COUNCIL,217867,Urban Renewal,Courses and Seminars,17/03/20,THE ARENA CO,318.75,Apr-20
EREWASH BOROUGH COUNCIL,218287,Homelessness,Temporary Accommodation,06/04/20,THE CLARENCE HOTEL,350.00,Apr-20
EREWASH BOROUGH COUNCIL,218466,Homelessness,Temporary Accommodation,20/04/20,THE CLARENCE HOTEL,350.00,Apr-20
EREWASH BOROUGH COUNCIL,218286,Homelessness,Temporary Accommodation,06/04/20,THE CLARENCE HOTEL,350.00,Apr-20
EREWASH BOROUGH COUNCIL,218403,Homelessness,Temporary Accommodation,15/04/20,THE CLARENCE HOTEL,350.00,Apr-20
EREWASH BOROUGH COUNCIL,218401,Homelessness,Temporary Accommodation,15/04/20,THE CLARENCE HOTEL,350.00,Apr-20
EREWASH BOROUGH COUNCIL,218289,Homelessness,Temporary Accommodation,15/04/20,THE CLARENCE HOTEL,300.00,Apr-20
EREWASH BOROUGH COUNCIL,218290,Homelessness,Temporary Accommodation,15/04/20,THE CLARENCE HOTEL,300.00,Apr-20
EREWASH BOROUGH COUNCIL,218400,Homelessness,Temporary Accommodation,06/04/20,THE CLARENCE HOTEL,350.00,Apr-20
EREWASH BOROUGH COUNCIL,218288,Homelessness,Temporary Accommodation,06/04/20,THE CLARENCE HOTEL,250.00,Apr-20
EREWASH BOROUGH COUNCIL,218402,Homelessness,Temporary Accommodation,15/04/20,THE CLARENCE HOTEL,350.00,Apr-20
EREWASH BOROUGH COUNCIL,218172,Green Space,Fuel,29/03/20,THE RIGHT FUELCARD COMPANY LTD,215.31,Apr-20
EREWASH BOROUGH COUNCIL,218330,Green Space,Fuel,12/04/20,THE RIGHT FUELCARD COMPANY LTD,438.08,Apr-20
EREWASH BOROUGH COUNCIL,218247,Registration of Electors,Subscriptions,01/04/20,THOMSON REUTERS,265.00,Apr-20
EREWASH BOROUGH COUNCIL,218381,Household/Residual Waste Collection,Agency Staff,07/04/20,THORN BAKER LIMITED,989.23,Apr-20
EREWASH BOROUGH COUNCIL,218095,Kerbside Dry Recycling Collection,Agency Staff,25/03/20,THORN BAKER LIMITED,659.49,Apr-20
EREWASH BOROUGH COUNCIL,218386,Household/Residual Waste Collection,Agency Staff,15/04/20,THORN BAKER LIMITED,"1,108.75",Apr-20
EREWASH BOROUGH COUNCIL,218095,Household/Residual Waste Collection,Agency Staff,25/03/20,THORN BAKER LIMITED,989.23,Apr-20
EREWASH BOROUGH COUNCIL,218381,Kerbside Dry Recycling Collection,Agency Staff,07/04/20,THORN BAKER LIMITED,659.49,Apr-20
EREWASH BOROUGH COUNCIL,218386,Kerbside Dry Recycling Collection,Agency Staff,15/04/20,THORN BAKER LIMITED,739.17,Apr-20
EREWASH BOROUGH COUNCIL,218291,Kerbside Dry Recycling Collection,Agency Staff,31/03/20,THORN BAKER LIMITED,605.25,Apr-20
EREWASH BOROUGH COUNCIL,218094,Kerbside Dry Recycling Collection,Agency Staff,18/03/20,THORN BAKER LIMITED,659.49,Apr-20
EREWASH BOROUGH COUNCIL,218291,Household/Residual Waste Collection,Agency Staff,31/03/20,THORN BAKER LIMITED,907.87,Apr-20
EREWASH BOROUGH COUNCIL,218094,Household/Residual Waste Collection,Agency Staff,18/03/20,THORN BAKER LIMITED,989.23,Apr-20
EREWASH BOROUGH COUNCIL,217986,Trees Hedges and Local Nature Reserves,Contracted Services,31/03/20,TOM RICHARDS TREE SERVICES,520.00,Apr-20
EREWASH BOROUGH COUNCIL,217905,Trees Hedges and Local Nature Reserves,Contracted Services,27/03/20,TOM RICHARDS TREE SERVICES,"18,660.00",Apr-20
EREWASH BOROUGH COUNCIL,217954,Trees Hedges and Local Nature Reserves,Contracted Services,18/03/20,TOM RICHARDS TREE SERVICES,"11,400.00",Apr-20
EREWASH BOROUGH COUNCIL,217955,Trees Hedges and Local Nature Reserves,Contracted Services,18/03/20,TOM RICHARDS TREE SERVICES,"3,650.00",Apr-20
EREWASH BOROUGH COUNCIL,217953,Trees Hedges and Local Nature Reserves,Contracted Services,14/01/20,TOM RICHARDS TREE SERVICES,300.00,Apr-20
EREWASH BOROUGH COUNCIL,217693,Civic Accommodation - Long Eaton,Electricity,16/03/20,TOTAL GAS & POWER LTD,"1,980.55",Apr-20
EREWASH BOROUGH COUNCIL,217694,Public Conveniences,Electricity,18/03/20,TOTAL GAS & POWER LTD,832.30,Apr-20
EREWASH BOROUGH COUNCIL,217694,Shopmobility - Long Eaton,Electricity,18/03/20,TOTAL GAS & POWER LTD,317.23,Apr-20
EREWASH BOROUGH COUNCIL,217694,CCTV - Ilkeston and Long Eaton,Electricity,18/03/20,TOTAL GAS & POWER LTD,324.75,Apr-20
EREWASH BOROUGH COUNCIL,217693,Sandiacre Friesland Sports Centre,Electricity,16/03/20,TOTAL GAS & POWER LTD,754.00,Apr-20
EREWASH BOROUGH COUNCIL,217643,Abbotsford Community Centre,Gas,11/03/20,TOTAL GAS & POWER LTD,284.95,Apr-20
EREWASH BOROUGH COUNCIL,217694,Atmospheric Pollution,Survey Fees,18/03/20,TOTAL GAS & POWER LTD,24.09,Apr-20
EREWASH BOROUGH COUNCIL,217694,Ilkeston Market,Electricity,18/03/20,TOTAL GAS & POWER LTD,"1,072.44",Apr-20
EREWASH BOROUGH COUNCIL,217643,Merlin Way Depot - Ilkeston,Gas,11/03/20,TOTAL GAS & POWER LTD,588.76,Apr-20
EREWASH BOROUGH COUNCIL,217643,Rutland Sports Park,Gas,11/03/20,TOTAL GAS & POWER LTD,381.55,Apr-20
EREWASH BOROUGH COUNCIL,217694,Erewash Museum,Electricity,18/03/20,TOTAL GAS & POWER LTD,408.86,Apr-20
EREWASH BOROUGH COUNCIL,217693,Long Eaton Market,Electricity,16/03/20,TOTAL GAS & POWER LTD,191.53,Apr-20
EREWASH BOROUGH COUNCIL,217694,Shopmobility - Ilkeston,Electricity,18/03/20,TOTAL GAS & POWER LTD,233.87,Apr-20
EREWASH BOROUGH COUNCIL,218221,Green Space,Gas,09/04/20,TOTAL GAS & POWER LTD,683.08,Apr-20
EREWASH BOROUGH COUNCIL,218221,Erewash Museum,Gas,09/04/20,TOTAL GAS & POWER LTD,438.29,Apr-20
EREWASH BOROUGH COUNCIL,218221,Abbotsford Community Centre,Gas,09/04/20,TOTAL GAS & POWER LTD,284.04,Apr-20
EREWASH BOROUGH COUNCIL,217643,Sandiacre Friesland Sports Centre,Gas,11/03/20,TOTAL GAS & POWER LTD,684.96,Apr-20
EREWASH BOROUGH COUNCIL,217890,Christmas Lights,PPM Mechanical and Equipment,25/03/20,TOTAL GAS & POWER LTD,"1,278.80",Apr-20
EREWASH BOROUGH COUNCIL,217693,Merlin Way Depot - Ilkeston,Electricity,16/03/20,TOTAL GAS & POWER LTD,"2,289.51",Apr-20
EREWASH BOROUGH COUNCIL,217694,Car Parking,Electricity,18/03/20,TOTAL GAS & POWER LTD,724.81,Apr-20
EREWASH BOROUGH COUNCIL,217694,Belvoir Close Maintenance,Electricity,18/03/20,TOTAL GAS & POWER LTD,25.05,Apr-20
EREWASH BOROUGH COUNCIL,217694,Public Clocks,Electricity,18/03/20,TOTAL GAS & POWER LTD,19.38,Apr-20
EREWASH BOROUGH COUNCIL,217694,Green Space,Electricity,18/03/20,TOTAL GAS & POWER LTD,"2,589.37",Apr-20
EREWASH BOROUGH COUNCIL,217693,Green Space,Electricity,16/03/20,TOTAL GAS & POWER LTD,742.74,Apr-20
EREWASH BOROUGH COUNCIL,217694,Pewit Golf Course,Electricity,18/03/20,TOTAL GAS & POWER LTD,14.18,Apr-20
EREWASH BOROUGH COUNCIL,217643,Civic Accommodation - Long Eaton,Gas,11/03/20,TOTAL GAS & POWER LTD,"1,434.44",Apr-20
EREWASH BOROUGH COUNCIL,218221,Merlin Way Depot - Ilkeston,Gas,09/04/20,TOTAL GAS & POWER LTD,537.68,Apr-20
EREWASH BOROUGH COUNCIL,217694,Civic Accommodation - Long Eaton,Electricity,18/03/20,TOTAL GAS & POWER LTD,22.09,Apr-20
EREWASH BOROUGH COUNCIL,217694,Bridge Arches - Long Eaton,Electricity,18/03/20,TOTAL GAS & POWER LTD,41.21,Apr-20
EREWASH BOROUGH COUNCIL,217694,Long Eaton Market,Electricity,18/03/20,TOTAL GAS & POWER LTD,54.37,Apr-20
EREWASH BOROUGH COUNCIL,217694,Watercourse Maintenance,Electricity,18/03/20,TOTAL GAS & POWER LTD,40.50,Apr-20
EREWASH BOROUGH COUNCIL,217694,Cemeteries,Electricity,18/03/20,TOTAL GAS & POWER LTD,276.53,Apr-20
EREWASH BOROUGH COUNCIL,217694,Cotmanhay Pavilion,Electricity,18/03/20,TOTAL GAS & POWER LTD,85.89,Apr-20
EREWASH BOROUGH COUNCIL,217694,Abbotsford Community Centre,Electricity,18/03/20,TOTAL GAS & POWER LTD,163.90,Apr-20
EREWASH BOROUGH COUNCIL,218221,Civic Accommodation - Long Eaton,Gas,09/04/20,TOTAL GAS & POWER LTD,"1,434.77",Apr-20
EREWASH BOROUGH COUNCIL,217643,Erewash Museum,Gas,11/03/20,TOTAL GAS & POWER LTD,444.86,Apr-20
EREWASH BOROUGH COUNCIL,218221,Rutland Sports Park,Gas,09/04/20,TOTAL GAS & POWER LTD,252.50,Apr-20
EREWASH BOROUGH COUNCIL,218221,Sandiacre Friesland Sports Centre,Gas,09/04/20,TOTAL GAS & POWER LTD,486.35,Apr-20
EREWASH BOROUGH COUNCIL,217693,Civic Accommodation - Ilkeston,Electricity,16/03/20,TOTAL GAS & POWER LTD,"1,426.57",Apr-20
EREWASH BOROUGH COUNCIL,217643,Green Space,Gas,11/03/20,TOTAL GAS & POWER LTD,341.21,Apr-20
EREWASH BOROUGH COUNCIL,218221,Civic Accommodation - Ilkeston,Gas,09/04/20,TOTAL GAS & POWER LTD,"1,206.66",Apr-20
EREWASH BOROUGH COUNCIL,217643,Civic Accommodation - Ilkeston,Gas,11/03/20,TOTAL GAS & POWER LTD,"1,307.30",Apr-20
EREWASH BOROUGH COUNCIL,217893,Operational Non Leisure Departmental,Courses and Seminars,26/03/20,TRADE PARTNERS INTERNATIONAL LTD,566.00,Apr-20
EREWASH BOROUGH COUNCIL,218189,Play Areas,Materials/Consumables,08/04/20,TRADE PARTNERS INTERNATIONAL LTD,769.00,Apr-20
EREWASH BOROUGH COUNCIL,217900,Revenues and Benefits,Software Licences,20/03/20,TRANSUNION INTERNATIONAL UK LIMITED,"37,960.00",Apr-20
EREWASH BOROUGH COUNCIL,217900,Balance Sheet,Counter Fraud Fund,20/03/20,TRANSUNION INTERNATIONAL UK LIMITED,"37,960.00",Apr-20
EREWASH BOROUGH COUNCIL,217731,Green Space,Repairs and Maintenance,16/03/20,TUDOR ENVIRONMENTAL,418.13,Apr-20
EREWASH BOROUGH COUNCIL,218186,Green Space,Materials/Consumables,31/03/20,TUDOR ENVIRONMENTAL,899.60,Apr-20
EREWASH BOROUGH COUNCIL,217731,Street Scene,Training,16/03/20,TUDOR ENVIRONMENTAL,128.07,Apr-20
EREWASH BOROUGH COUNCIL,218103,Homelessness,Temporary Accommodation,28/03/20,TUDOR LODGE HOTEL,350.00,Apr-20
EREWASH BOROUGH COUNCIL,218104,Homelessness,Temporary Accommodation,24/03/20,TUDOR LODGE HOTEL,350.00,Apr-20
EREWASH BOROUGH COUNCIL,218375,Homelessness,Temporary Accommodation,19/04/20,TUDOR LODGE HOTEL,300.00,Apr-20
EREWASH BOROUGH COUNCIL,218310,Balance Sheet,Payroll Collection A/c - Trade Union Subscriptions,22/04/20,UNISON,485.40,Apr-20
EREWASH BOROUGH COUNCIL,218310,Payments,Commission,22/04/20,UNISON,-7.28,Apr-20
EREWASH BOROUGH COUNCIL,218199,Development Control - Fee Earning,Planning Fees,14/04/20,REDACTED PERSONAL DATA,320.00,Apr-20
EREWASH BOROUGH COUNCIL,218240,ICT Support Services,Mobile Phones,01/04/20,VODAFONE,"1,355.74",Apr-20
EREWASH BOROUGH COUNCIL,218184,Street Scene,Materials/Consumables,31/03/20,WASTECARE,120.50,Apr-20
EREWASH BOROUGH COUNCIL,218184,Green Space,Repairs and Maintenance,31/03/20,WASTECARE,100.00,Apr-20
EREWASH BOROUGH COUNCIL,218228,Balance Sheet,Flood Hardship Fund,15/04/20,REDACTED PERSONAL DATA,500.00,Apr-20
EREWASH BOROUGH COUNCIL,218063,Insurances,Uninsured Risks,30/03/20,WEIGHTMANS LLP,0.00,Apr-20
EREWASH BOROUGH COUNCIL,217912,Parish Precepts,West Hallam - Precept,30/03/20,WEST HALLAM PARISH COUNCIL,"9,945.00",Apr-20
EREWASH BOROUGH COUNCIL,217912,Parish Council Concurrent Functions,West Hallam - Precept,30/03/20,WEST HALLAM PARISH COUNCIL,"3,476.00",Apr-20
EREWASH BOROUGH COUNCIL,218208,Central Services/Statement of Accounts,Valuation Fees,08/04/20,WILKS HEAD AND EVE LLP,"2,790.00",Apr-20
EREWASH BOROUGH COUNCIL,217832,Household/Residual Waste Collection,Agency Staff,07/03/20,WORKCHAIN LTD,228.38,Apr-20
EREWASH BOROUGH COUNCIL,218061,Household/Residual Waste Collection,Agency Staff,21/03/20,WORKCHAIN LTD,349.65,Apr-20
EREWASH BOROUGH COUNCIL,218102,Household/Residual Waste Collection,Agency Staff,14/03/20,WORKCHAIN LTD,349.65,Apr-20
EREWASH BOROUGH COUNCIL,218060,Kerbside Dry Recycling Collection,Agency Staff,28/03/20,WORKCHAIN LTD,"1,281.89",Apr-20
EREWASH BOROUGH COUNCIL,218383,Kerbside Dry Recycling Collection,Agency Staff,04/04/20,WORKCHAIN LTD,408.48,Apr-20
EREWASH BOROUGH COUNCIL,218383,Household/Residual Waste Collection,Agency Staff,04/04/20,WORKCHAIN LTD,612.72,Apr-20
EREWASH BOROUGH COUNCIL,218102,Kerbside Dry Recycling Collection,Agency Staff,14/03/20,WORKCHAIN LTD,233.10,Apr-20
EREWASH BOROUGH COUNCIL,218061,Kerbside Dry Recycling Collection,Agency Staff,21/03/20,WORKCHAIN LTD,233.10,Apr-20
EREWASH BOROUGH COUNCIL,218241,Balance Sheet,ICT Software Licence Payment in Advance,11/03/20,ZELLIS UK LIMITED,"2,400.00",Apr-20
